[Event "43rd Indian-chT 2023-24"]
[Site "Dharamsala"]
[Date "2024.03.29"]
[Round "1.1"]
[White "Ardhendu Sekhar Mandal"]
[Black "Krishna C R G"]
[Result "0-1"]
[ECO "C42"]
[WhiteElo "1654"]
[BlackElo "2445"]
[Annotator "RC"]
[PlyCount "76"]
[EventDate "2024.03.28"]
[EventType "team-tourn"]
[EventCountry "IND"]
[SourceTitle "playchess.com"]
[Source "ChessBase"]
[SourceQuality "1"]
[TimeControl "5400+30"]

1. e4 {[%emt 0:00:05]} d6 {[%emt 0:00:10]} 2. Nf3 {[%emt 0:00:20]} Nf6 {[%emt 0:00:03]} 3. Nc3 {[%emt 0:00:31]} e5 {[%emt 0:00:11]} 4. Bc4 {[%emt 0:00:45]} Be7 {[%emt 0:00:08]} 5. d3 {[%emt 0:00:32]} c6 {[%emt 0:00:48]} 6. Bg5 {[%emt 0:01:31]} a5 {[%emt 0:01:02]} 7. a4 {[%emt 0:00:58]} Nbd7 {[%emt 0:00:52]} 8. O-O {[%emt 0:00:52]} Nf8 {[%emt 0:03:10]} 9. h3 {[%emt 0:03:04]} h6 {[%emt 0:00:52]} 10. Bh4 {[%emt 0:05:07]} g5 {[%emt 0:00:44]} 11. Bg3 {[%emt 0:00:16]} Ng6 {[%emt 0:00:03]} 12. Qd2 {[%emt 0:03:51]} Rg8 {[%emt 0:04:02]} 13. d4 {[%emt 0:08:24]} Qc7 {[%emt 0:00:20]} 14. d5 {[%emt 0:02:44]} Nf4 {[%emt 0:01:18]} 15. Bxf4 {[%emt 0:03:49]} gxf4 {[%emt 0:00:03]} 16. Kh2 {[%emt 0:01:45]} Bd7 {[%emt 0:05:12]} 17. Rad1 {[%emt 0:01:24]} Qc8 {[%emt 0:07:08]} 18. Qd3 {[%emt 0:13:31]} Kf8 {[%emt 0:02:05]} 19. Ne2 {[%emt 0:04:47]} cxd5 {[%emt 0:04:23]} 20. Bxd5 {[%emt 0:01:36]} Nxd5 {[%emt 0:05:50]} 21. Nxe5 {[%emt 0:08:37]} dxe5 {[%emt 0:05:32]} 22. Qxd5 {[%emt 0:00:27]} Rxg2+ {[%emt 0:01:17]} 23. Kxg2 {[%emt 0:01:43]} Bxh3+ {[%emt 0:00:04]} 24. Kh2 {[%emt 0:05:02]} Qg4 {[%emt 0:00:15]} 25. Ng3 {[%emt 0:08:44]} fxg3+ {[%emt 0:01:03]} 26. fxg3 {[%emt 0:00:36]} Bxf1 {[%emt 0:00:03]} 27. Rxf1 {[%emt 0:01:04]} Qh5+ {[%emt 0:00:03]} 28. Kg2 {[%emt 0:01:22]} Rd8 {[%emt 0:00:03]} 29. Qxa5 {[%emt 0:01:01]} Qe2+ {[%emt 0:00:10]} 30. Rf2 {[%emt 0:02:20]} Qxe4+ {[%emt 0:00:02]} 31. Rf3 {[%emt 0:09:57]} Qxc2+ {[%emt 0:00:04]} 32. Rf2 {[%emt 0:00:05]} Qc6+ {[%emt 0:00:04]} 33. Kh3 {[%emt 0:02:39]} Qh1+ {[%emt 0:00:58]} 34. Rh2 {[%emt 0:01:11]} Qf1+ {[%emt 0:00:03]} 35. Rg2 {[%emt 0:00:20]} Qf5+ {[%emt 0:00:02]} 36. g4 {[%emt 0:04:51]} Rd3+ {[%emt 0:00:12]} 37. Rg3 {[%emt 0:02:10]} Qf1+ {[%emt 0:00:03]} 38. Kh2 {[%emt 0:00:31]} Qf2+ {[%emt 0:00:02]} 0-1

[Event "43rd Indian-chT 2023-24"]
[Site "Dharamsala"]
[Date "2024.03.29"]
[Round "1.2"]
[White "Ghosh, Diptayan"]
[Black "Chandrasekhar, M K"]
[Result "1-0"]
[ECO "D30"]
[WhiteElo "2559"]
[BlackElo "1839"]
[Annotator "RC"]
[PlyCount "41"]
[EventDate "2024.03.28"]
[EventType "team-tourn"]
[EventCountry "IND"]
[SourceTitle "playchess.com"]
[Source "ChessBase"]
[SourceQuality "1"]
[TimeControl "5400+30"]

1. Nf3 {[%emt 0:02:33]} Nf6 {[%emt 0:00:32]} 2. c4 {[%emt 0:00:07]} e6 {[%emt 0:00:10]} 3. g3 {[%emt 0:00:05]} d5 {[%emt 0:00:10]} 4. Bg2 {[%emt 0:00:05]} dxc4 {[%emt 0:03:22]} 5. Qa4+ {[%emt 0:00:07]} c6 {[%emt 0:00:04]} 6. Qxc4 {[%emt 0:00:04]} b5 {[%emt 0:00:10]} 7. Qb3 {[%emt 0:00:37]} Bb7 {[%emt 0:01:20]} 8. d4 {[%emt 0:00:38]} c5 {[%emt 0:05:23]} 9. Qxb5+ {[%emt 0:09:07]} Bc6 {[%emt 0:00:15]} 10. Qc4 {[%emt 0:02:54]} Bd5 {[%emt 0:00:38]} 11. Qa4+ {[%emt 0:04:45]} Bc6 {[%emt 0:00:12]} 12. Qd1 {[%emt 0:00:28]} cxd4 {[%emt 0:00:52]} 13. O-O {[%emt 0:00:05]} Bc5 {[%emt 0:05:22]} 14. Nbd2 {[%emt 0:01:21]} d3 {[%emt 0:02:35]} 15. exd3 {[%emt 0:01:22]} Qxd3 {[%emt 0:01:18]} 16. Ne5 {[%emt 0:01:02]} Qa6 {[%emt 0:00:50]} 17. Nxc6 {[%emt 0:02:32]} Nxc6 {[%emt 0:00:09]} 18. Qc2 {[%emt 0:00:59]} Qb6 {[%emt 0:02:06]} 19. Nb3 {[%emt 0:00:41]} Nd7 {[%emt 0:02:10]} 20. Nxc5 {[%emt 0:00:33]} Nxc5 {[%emt 0:00:09]} 21. Be3 {[%emt 0:00:16]} 1-0

[Event "43rd Indian-chT 2023-24"]
[Site "Dharamsala"]
[Date "2024.03.29"]
[Round "1.3"]
[White "Ajay Kumar Rai"]
[Black "Visakh N R"]
[Result "0-1"]
[ECO "E14"]
[WhiteElo "1816"]
[BlackElo "2521"]
[Annotator "RC"]
[PlyCount "100"]
[EventDate "2024.03.28"]
[EventType "team-tourn"]
[EventCountry "IND"]
[SourceTitle "playchess.com"]
[Source "ChessBase"]
[SourceQuality "1"]
[TimeControl "5400+30"]

1. d4 {[%emt 0:00:20]} Nf6 {[%emt 0:00:21]} 2. Nf3 {[%emt 0:00:13]} e6 {[%emt 0:00:13]} 3. e3 {[%emt 0:00:11]} b6 {[%emt 0:04:10]} 4. Bd3 {[%emt 0:02:42]} Bb7 {[%emt 0:00:05]} 5. O-O {[%emt 0:00:07]} Be7 {[%emt 0:00:56]} 6. c4 {[%emt 0:00:08]} O-O {[%emt 0:01:43]} 7. b3 {[%emt 0:01:53]} c5 {[%emt 0:06:30]} 8. dxc5 {[%emt 0:01:49]} bxc5 {[%emt 0:01:44]} 9. Bb2 {[%emt 0:00:32]} Nc6 {[%emt 0:00:57]} 10. Nc3 {[%emt 0:00:40]} Qc7 {[%emt 0:03:51]} 11. Rc1 {[%emt 0:04:02]} Rad8 {[%emt 0:00:41]} 12. Qe2 {[%emt 0:02:39]} Ng4 {[%emt 0:01:53]} 13. Ne4 {[%emt 0:07:21]} f5 {[%emt 0:01:35]} 14. Ned2 {[%emt 0:01:37]} Bf6 {[%emt 0:01:19]} 15. Bxf6 {[%emt 0:02:55]} Rxf6 {[%emt 0:00:16]} 16. Rfd1 {[%emt 0:02:41]} Rh6 {[%emt 0:03:53]} 17. h3 {[%emt 0:06:25]} Rf8 {[%emt 0:03:16]} 18. Nf1 {[%emt 0:01:17]} Nge5 {[%emt 0:02:23]} 19. Nxe5 {[%emt 0:01:16]} Nxe5 {[%emt 0:00:03]} 20. Ng3 {[%emt 0:05:13]} Rff6 {[%emt 0:04:57]} 21. f4 {[%emt 0:01:43]} Rfg6 {[%emt 0:04:52]} 22. Qf2 {[%emt 0:00:56]} Nxd3 {[%emt 0:14:53]} 23. Rxd3 {[%emt 0:00:08]} Qc6 {[%emt 0:00:35]} 24. e4 {[%emt 0:02:18]} fxe4 {[%emt 0:00:11]} 25. Re3 {[%emt 0:00:21]} Qd6 {[%emt 0:00:36]} 26. Nxe4 {[%emt 0:03:53]} Bxe4 {[%emt 0:00:31]} 27. Rxe4 {[%emt 0:00:02]} Rxh3 {[%emt 0:00:43]} 28. Re3 {[%emt 0:02:15]} Rh5 {[%emt 0:01:49]} 29. Qf3 {[%emt 0:00:40]} Qd2 {[%emt 0:01:46]} 30. Rce1 {[%emt 0:02:27]} Rgh6 {[%emt 0:01:01]} 31. Qe2 {[%emt 0:01:23]} Qd4 {[%emt 0:00:25]} 32. Qf3 {[%emt 0:02:13]} Rh4 {[%emt 0:01:36]} 33. Rf1 {[%emt 0:03:52]} Kf7 {[%emt 0:00:38]} 34. Qe4 {[%emt 0:01:45]} Rh1+ {[%emt 0:05:27]} 35. Kf2 {[%emt 0:00:12]} Rxf1+ {[%emt 0:00:26]} 36. Kxf1 {[%emt 0:00:02]} Rh1+ {[%emt 0:04:31]} 37. Kf2 {[%emt 0:00:28]} Ra1 {[%emt 0:00:49]} 38. a4 {[%emt 0:02:52]} Ra2+ {[%emt 0:00:08]} 39. Kf3 {[%emt 0:01:00]} Qxe4+ {[%emt 0:01:58]} 40. Rxe4 {[%emt 0:00:20]} Ra3 {[%emt 0:00:08]} 41. Re3 {[%emt 0:00:21]} d5 {[%emt 0:01:58]} 42. Rc3 {[%emt 0:05:32]} dxc4 {[%emt 0:02:01]} 43. Rxc4 {[%emt 0:00:01]} Rxb3+ {[%emt 0:00:06]} 44. Kg4 {[%emt 0:00:31]} Rb4 {[%emt 0:00:06]} 45. Rxc5 {[%emt 0:00:05]} Rxa4 {[%emt 0:00:01]} 46. Kf3 {[%emt 0:03:18]} Kf6 {[%emt 0:01:09]} 47. g4 {[%emt 0:00:03]} h6 {[%emt 0:00:03]} 48. Rc6 {[%emt 0:00:13]} g6 {[%emt 0:00:20]} 49. Rc8 {[%emt 0:00:27]} g5 {[%emt 0:00:35]} 50. fxg5+ {[%emt 0:01:34]} hxg5 {[%emt 0:00:02]} 0-1

[Event "43rd Indian-chT 2023-24"]
[Site "Dharamsala"]
[Date "2024.03.29"]
[Round "1.4"]
[White "Neelash Saha"]
[Black "Himanshu, Moudgil"]
[Result "1-0"]
[ECO "A45"]
[WhiteElo "2463"]
[BlackElo "1684"]
[Annotator "RC"]
[PlyCount "44"]
[EventDate "2024.03.28"]
[EventType "team-tourn"]
[EventCountry "IND"]
[SourceTitle "playchess.com"]
[Source "ChessBase"]
[SourceQuality "1"]
[TimeControl "5400+30"]

1. d4 {[%emt 0:01:39]} Nf6 {[%emt 0:02:21]} 2. Bg5 {[%emt 0:00:12]} g6 {[%emt 0:00:17]} 3. Bxf6 {[%emt 0:00:07]} exf6 {[%emt 0:00:06]} 4. g3 {[%emt 0:00:02]} Bg7 {[%emt 0:00:14]} 5. Bg2 {[%emt 0:00:06]} O-O {[%emt 0:00:04]} 6. e3 {[%emt 0:00:17]} d5 {[%emt 0:00:15]} 7. Ne2 {[%emt 0:00:06]} Bg4 {[%emt 0:00:13]} 8. c4 {[%emt 0:00:28]} dxc4 {[%emt 0:01:08]} 9. h3 {[%emt 0:01:40]} Bxe2 {[%emt 0:01:22]} 10. Qxe2 {[%emt 0:00:06]} c6 {[%emt 0:00:06]} 11. Qxc4 {[%emt 0:00:18]} Nd7 {[%emt 0:00:18]} 12. O-O {[%emt 0:00:25]} f5 {[%emt 0:00:21]} 13. Nc3 {[%emt 0:00:45]} Nf6 {[%emt 0:00:39]} 14. b4 {[%emt 0:00:28]} Rc8 {[%emt 0:00:15]} 15. Rab1 {[%emt 0:01:48]} h5 {[%emt 0:00:18]} 16. h4 {[%emt 0:04:30]} Ng4 {[%emt 0:00:17]} 17. Ne2 {[%emt 0:00:32]} Bf6 {[%emt 0:01:09]} 18. Nf4 {[%emt 0:00:57]} Kg7 {[%emt 0:00:41]} 19. Qd3 {[%emt 0:01:22]} Bxh4 {[%emt 0:00:21]} 20. gxh4 {[%emt 0:00:40]} Qxh4 {[%emt 0:00:08]} 21. Nh3 {[%emt 0:00:07]} Rfe8 {[%emt 0:00:21]} 22. Rfe1 {[%emt 0:00:51]} Rcd8 {[%emt 0:06:33]} 1-0

[Event "43rd Indian-chT 2023-24"]
[Site "Dharamsala"]
[Date "2024.03.29"]
[Round "1.5"]
[White "Shyaamnikhil P"]
[Black "Piyush Kumar Mishra"]
[Result "1-0"]
[ECO "C12"]
[WhiteElo "2405"]
[BlackElo "1619"]
[Annotator "RC"]
[PlyCount "63"]
[EventDate "2024.03.28"]
[EventType "team-tourn"]
[EventCountry "IND"]
[SourceTitle "playchess.com"]
[Source "ChessBase"]
[SourceQuality "1"]
[TimeControl "5400+30"]

1. e4 {[%emt 0:00:10]} e6 {[%emt 0:00:53]} 2. d4 {[%emt 0:00:35]} d5 {[%emt 0:00:29]} 3. Nc3 {[%emt 0:01:04]} Nf6 {[%emt 0:00:15]} 4. Bg5 {[%emt 0:03:32]} h6 {[%emt 0:00:28]} 5. Bxf6 {[%emt 0:02:10]} Qxf6 {[%emt 0:00:12]} 6. Nge2 {[%emt 0:02:07]} Qd8 {[%emt 0:14:37]} 7. g3 {[%emt 0:04:38]} Be7 {[%emt 0:06:19]} 8. Bg2 {[%emt 0:01:00]} c6 {[%emt 0:00:40]} 9. O-O {[%emt 0:00:09]} Nd7 {[%emt 0:00:49]} 10. Nf4 {[%emt 0:02:46]} O-O {[%emt 0:03:19]} 11. Re1 {[%emt 0:06:26]} dxe4 {[%emt 0:06:16]} 12. Rxe4 {[%emt 0:00:23]} Nf6 {[%emt 0:00:11]} 13. Re1 {[%emt 0:03:05]} Nd5 {[%emt 0:01:04]} 14. Nce2 {[%emt 0:09:04]} Bd6 {[%emt 0:06:53]} 15. Nd3 {[%emt 0:01:51]} Qf6 {[%emt 0:03:03]} 16. c3 {[%emt 0:05:07]} h5 {[%emt 0:08:20]} 17. Nec1 {[%emt 0:02:19]} h4 {[%emt 0:00:46]} 18. Nb3 {[%emt 0:00:50]} Bc7 {[%emt 0:16:44]} 19. Ne5 {[%emt 0:03:02]} Bxe5 {[%emt 0:07:18]} 20. dxe5 {[%emt 0:04:09]} Qg5 {[%emt 0:05:42]} 21. c4 {[%emt 0:05:45]} Ne7 {[%emt 0:01:11]} 22. f4 {[%emt 0:08:56]} Qh6 {[%emt 0:01:18]} 23. Nc5 {[%emt 0:02:06]} Nf5 {[%emt 0:01:01]} 24. g4 {[%emt 0:08:27]} h3 {[%emt 0:00:46]} 25. gxf5 {[%emt 0:00:07]} hxg2 {[%emt 0:00:17]} 26. f6 {[%emt 0:00:08]} Qxf4 {[%emt 0:03:31]} 27. Re4 {[%emt 0:02:47]} Qf1+ {[%emt 0:01:26]} 28. Qxf1 {[%emt 0:00:06]} gxf1=Q+ {[%emt 0:00:08]} 29. Rxf1 {[%emt 0:00:10]} b6 {[%emt 0:03:30]} 30. Rg4 {[%emt 0:02:08]} Rd8 {[%emt 0:01:15]} 31. Rxg7+ {[%emt 0:00:18]} Kf8 {[%emt 0:00:02]} 32. Ne4 {[%emt 0:01:29]} 1-0

[Event "43rd Indian-chT 2023-24"]
[Site "Dharamsala"]
[Date "2024.03.29"]
[Round "1.6"]
[White "Dev Raj"]
[Black "Das, Sayantan"]
[Result "0-1"]
[ECO "B30"]
[WhiteElo "1744"]
[BlackElo "2502"]
[Annotator "RC"]
[PlyCount "44"]
[EventDate "2024.03.28"]
[EventType "team-tourn"]
[EventCountry "IND"]
[SourceTitle "playchess.com"]
[Source "ChessBase"]
[SourceQuality "1"]
[TimeControl "5400+30"]

1. e4 {[%emt 0:00:22]} c5 {[%emt 0:00:32]} 2. Nc3 {[%emt 0:00:31]} Nc6 {[%emt 0:00:35]} 3. Bb5 {[%emt 0:01:22]} Nd4 {[%emt 0:02:42]} 4. Nf3 {[%emt 0:00:40]} e6 {[%emt 0:02:50]} 5. O-O {[%emt 0:03:39]} a6 {[%emt 0:03:09]} 6. Bd3 {[%emt 0:04:47]} Ne7 {[%emt 0:03:25]} 7. Nxd4 {[%emt 0:03:28]} cxd4 {[%emt 0:00:40]} 8. Ne2 {[%emt 0:00:02]} Nc6 {[%emt 0:00:17]} 9. c3 {[%emt 0:00:22]} Bc5 {[%emt 0:05:45]} 10. a4 {[%emt 0:05:39]} O-O {[%emt 0:03:43]} 11. b4 {[%emt 0:04:12]} Bb6 {[%emt 0:02:24]} 12. Bb2 {[%emt 0:01:25]} d5 {[%emt 0:08:13]} 13. Qb1 {[%emt 0:08:50]} dxc3 {[%emt 0:08:33]} 14. dxc3 {[%emt 0:02:40]} Qh4 {[%emt 0:00:37]} 15. exd5 {[%emt 0:12:09]} Ne5 {[%emt 0:04:14]} 16. Nd4 {[%emt 0:08:48]} exd5 {[%emt 0:01:10]} 17. Bf5 {[%emt 0:08:33]} Nc4 {[%emt 0:06:40]} 18. Bxc8 {[%emt 0:05:33]} Raxc8 {[%emt 0:00:10]} 19. Nf3 {[%emt 0:04:30]} Qf6 {[%emt 0:04:42]} 20. Ra2 {[%emt 0:08:36]} Nxb2 {[%emt 0:04:38]} 21. Rxb2 {[%emt 0:02:25]} Rxc3 {[%emt 0:00:07]} 22. Rd2 {[%emt 0:01:35]} Rxf3 {[%emt 0:00:27]} 0-1

[Event "43rd Indian-chT 2023-24"]
[Site "Dharamsala"]
[Date "2024.03.29"]
[Round "1.7"]
[White "Swapnil, S. Dhopade"]
[Black "Rupesh B Ramchandra"]
[Result "1-0"]
[ECO "E11"]
[WhiteElo "2454"]
[BlackElo "1819"]
[Annotator "TA"]
[PlyCount "97"]
[EventDate "2024.03.28"]
[EventType "team-tourn"]
[EventCountry "IND"]
[SourceTitle "playchess.com"]
[Source "ChessBase"]
[SourceQuality "1"]
[TimeControl "5400+30"]

{[%evp 10,97,21,14,27,34,36,29,70,68,74,72,77,67,70,66,66,67,75,69,64,66,80,56,74,73,82,87,84,85,111,113,121,110,153,148,169,149,228,245,222,139,269,269,266,262,261,270,279,259,311,303,302,262,251,270,345,349,343,335,343,315,336,266,267,311,306,327,325,318,322,293,333,285,579,530,743,724,719,668,810,1443,1888,1811,1640,1677,4837,4837,29980,29981]} 1. d4 {[%emt 0:00:03]} Nf6 {[%emt 0:00:13]} 2. c4 {[%emt 0:00:05]} e6 {[%emt 0:00:45]} 3. Nf3 {[%emt 0:00:29]} Bb4+ {[%emt 0:03:00]} 4. Bd2 {[%emt 0:00:51]} Qe7 {[%emt 0:02:43]} 5. g3 {[%emt 0:00:35]} Bxd2+ {[%emt 0:03:33]} 6. Qxd2 {[%emt 0:00:38]} d5 {[%emt 0:00:34]} 7. Bg2 {[%emt 0:07:24]} Ne4 {[%emt 0:06:00]} 8. Qc2 {[%emt 0:01:23]} Nc6 {[%emt 0:08:07] White has an edge.} 9. O-O {[%emt 0:01:36]} O-O {[%emt 0:05:27]} 10. Nc3 {[%emt 0:07:17]} Nxc3 {[%emt 0:05:00]} 11. Qxc3 {[%emt 0:00:13]} Qb4 {[%emt 0:08:25]} 12. Rfc1 {[%emt 0:01:39][%cal Bf1c1,Bc1c3,Bc3b3][%mdl 32]} Qxc3 {[%emt 0:04:04]} 13. Rxc3 {[%emt 0:00:05]} Ne7 {[%emt 0:00:28]} 14. cxd5 {[%emt 0:04:25]} Nxd5 {[%emt 0:01:38]} 15. Rb3 {[%emt 0:01:04]} Rd8 {[%emt 0:02:21]} 16. Rc1 {[%emt 0:00:30]} c6 {[%emt 0:01:09]} 17. Ne5 {[%emt 0:03:56][%cal Bf3e5,Be5d3,Bd3c5][%mdl 32] White stays focused until the end.} Nb6 {[%emt 0:01:51]} 18. e3 {[%emt 0:00:04] White has more active pieces.} f6 {[%emt 0:01:32]} 19. Nd3 {[%emt 0:00:27]} e5 {[%emt 0:03:37]} 20. dxe5 {[%emt 0:05:56]} Be6 {[%emt 0:01:35]} 21. Ra3 $36 {[%emt 0:01:34][%mdl 2048] White is in control.} Nc4 {[%emt 0:02:59] [#]} 22. Nc5 $1 {[%emt 0:06:37][%csl LRb7,LRe6]} Bd5 {[%emt 0:06:40]} ({Don't go for} 22... Nxa3 $2 23. Nxe6 Rd2 24. bxa3 $18) (22... Bc8 23. Nxb7) 23. e4 {[%emt 0:08:36]} Nxa3 {[%emt 0:04:05]} (23... Bf7 $16) 24. exd5 $18 {[%emt 0:01:47]} cxd5 {[%emt 0:02:12][%cal Oa8c8]} 25. bxa3 {[%emt 0:05:48]} fxe5 {[%emt 0:00:21]} (25... Rac8 $16) 26. Nxb7 {[%emt 0:00:16]} Rd7 {[%emt 0:00:29] [#]} 27. Rd1 $1 {[%emt 0:04:44]} Rb8 {[%emt 0:02:49]} 28. Nc5 {[%emt 0:00:09]} (28. Rxd5 $2 {perishes.} Rbxb7 (28... Rdxb7 29. Rxe5 Rb1+ 30. Bf1 $17) 29. Kf1 Rb1+ 30. Ke2 Rxd5 31. Bxd5+ Kf8 $17) 28... Rd6 {[%emt 0:00:56]} 29. Bxd5+ {[%emt 0:00:05]} Kh8 {[%emt 0:00:22] And now ...Rbd8 would win.} 30. Ne4 {[%emt 0:00:13]} Rd7 {[%emt 0:01:48]} 31. Kg2 {[%emt 0:00:45]} Rbd8 {[%emt 0:00:42]} 32. Nc3 {[%emt 0:00:09]} e4 {[%emt 0:02:00]} 33. Rb1 {[%emt 0:04:28]} g6 {[%emt 0:06:01]} 34. Bxe4 {[%emt 0:00:22]} Rd2 {[%emt 0:00:31]} 35. Re1 {[%emt 0:01:30]} Rc8 {[%emt 0:01:40]} 36. Re2 {[%emt 0:00:46]} Rxe2 {[%emt 0:01:04]} 37. Nxe2 {[%emt 0:00:04]} Rc4 {[%emt 0:00:13]} 38. Bd5 {[%emt 0:01:07]} Ra4 {[%emt 0:00:48]} 39. Bb3 {[%emt 0:00:07]} Rxa3 {[%emt 0:00:13]} 40. f4 {[%emt 0:00:06]} Ra5 {[%emt 0:00:38]} 41. Kf3 {[%emt 0:00:10]} g5 $2 {[%emt 0:01:18]} (41... Rc5 42. Ke4 Rh5) 42. h4 {[%emt 0:03:28]} gxf4 {[%emt 0:00:45]} 43. gxf4 {[%emt 0:00:05][%cal Bg3f4,Bf4f5,Bf5f6][%mdl 32]} Rc5 {[%emt 0:01:04]} 44. Ng3 {[%emt 0:01:11]} a5 {[%emt 0:00:41]} 45. f5 {[%emt 0:00:29]} a4 {[%emt 0:00:51]} 46. Bxa4 {[%emt 0:05:44]} Rc3+ {[%emt 0:00:17]} 47. Kg2 {[%emt 0:00:06]} Rc4 {[%emt 0:00:19]} 48. Bb3 {[%emt 0:00:05]} Rxh4 {[%emt 0:00:11]} 49. f6 {[%emt 0:01:23] Weighted Error Value: White=0.11 (very precise) /Black=0.44.  Mistake:       	---       	Black=3      Inaccurate:     	White=1     	Black=4      OK:         	White=20    	Black=15     Best:        	White=3     	---} 1-0

[Event "43rd Indian-chT 2023-24"]
[Site "Dharamsala"]
[Date "2024.03.29"]
[Round "1.8"]
[White "Rahul, Kumar"]
[Black "Gusain, Himal"]
[Result "0-1"]
[ECO "B44"]
[WhiteElo "1834"]
[BlackElo "2484"]
[Annotator "TA"]
[PlyCount "82"]
[EventDate "2024.03.28"]
[EventType "team-tourn"]
[EventCountry "IND"]
[SourceTitle "playchess.com"]
[Source "ChessBase"]
[SourceQuality "1"]
[TimeControl "5400+30"]

{[%evp 10,82,8,0,18,18,29,17,45,26,43,13,38,33,46,29,40,0,20,0,2,-4,-4,-2,67,7,127,0,0,0,34,31,57,0,24,28,18,7,8,-18,-33,-23,-28,-27,-28,-73,-77,-73,-65,-64,-59,-78,-79,-116,-118,-116,-108,-108,-113,-133,-109,-119,-108,-119,-169,-168,-168,-171,-172,-165,-164,-114,-106,-129,0]} 1. e4 {[%emt 0:00:14]} c5 {[%emt 0:00:34]} 2. Nf3 {[%emt 0:00:34]} e6 {[%emt 0:00:20]} 3. d4 {[%emt 0:00:27]} cxd4 {[%emt 0:00:09]} 4. Nxd4 {[%emt 0:00:07]} Nc6 {[%emt 0:00:08]} 5. Nxc6 {[%emt 0:00:44]} bxc6 {[%emt 0:00:09]} 6. Bd3 {[%emt 0:00:05]} e5 {[%emt 0:02:06]} 7. O-O {[%emt 0:01:46]} Bc5 {[%emt 0:00:09]} 8. Qg4 {[%emt 0:02:16]} Qf6 {[%emt 0:00:42] The position is equal.} 9. Qg3 {[%emt 0:05:12]} d6 {[%emt 0:01:12]} 10. Nd2 {[%emt 0:02:49][%cal Bb1d2,Bd2c4,Bc4e3,Be3f5][%mdl 32]} Ne7 {[%emt 0:01:02]} 11. Nc4 {[%emt 0:03:38]} Ng6 {[%emt 0:11:34]} 12. Bg5 {[%emt 0:06:25]} Qe6 {[%emt 0:00:10]} 13. Ne3 {[%emt 0:03:03]} f6 {[%emt 0:12:31] [#]} 14. Nf5 $1 {[%emt 0:06:00]} O-O {[%emt 0:01:37]} 15. Be3 {[%emt 0:04:45]} Bxe3 {[%emt 0:00:58]} 16. fxe3 {[%emt 0:00:20]} Kh8 {[%emt 0:00:23]} (16... Rd8 $1 $11) 17. h4 {[%emt 0:02:09]} (17. Be2 $1 $14) 17... Rf7 {[%emt 0:00:33] [#]} (17... Rg8 $1 $11 {remains equal.}) 18. b3 {[%emt 0:07:17]} (18. Rad1 $1 $16) 18... Ne7 $11 {[%emt 0:04:10]} 19. c4 {[%emt 0:07:38][%cal Oc4c5]} g6 {[%emt 0:15:32]} 20. Nh6 {[%emt 0:09:25]} Rf8 {[%emt 0:00:26]} 21. Rf2 {[%emt 0:03:13]} ({White should try} 21. c5 $14) 21... Ng8 {[%emt 0:05:38]} (21... Kg7 $5 22. Nf5+ $8 Kh8 $11) 22. Nxg8 {[%emt 0:01:02]} Kxg8 {[%emt 0:05:06]} 23. Rd1 {[%emt 0:02:31]} (23. c5 {with more complications.} Kg7 24. Bc4 Qe7 25. cxd6 Qxd6 26. Rc2) 23... c5 {[%emt 0:02:27]} (23... Kg7 {looks sharper.} 24. h5 a5 25. Be2 c5) 24. Rfd2 {[%emt 0:02:22]} (24. h5 {keeps more tension.} Kg7 25. Be2 a5 26. Qh4) 24... a5 {[%emt 0:04:17]} 25. Be2 {[%emt 0:01:59]} Ra6 {[%emt 0:00:26]} 26. Bf3 {[%emt 0:02:09]} Kf7 {[%emt 0:00:58]} 27. Qf2 {[%emt 0:02:43]} h5 {[%emt 0:00:45]} 28. Rd3 {[%emt 0:00:30]} Ke7 {[%emt 0:03:01]} 29. Qd2 {[%emt 0:03:42]} Bb7 {[%emt 0:02:21]} 30. Qe1 {[%emt 0:03:16]} g5 {[%emt 0:02:04]} 31. hxg5 {[%emt 0:03:27]} (31. Bxh5 $2 Bxe4 32. hxg5 Bxd3 (32... fxg5 33. R3d2 $15) 33. Rxd3 Qf5 (33... fxg5 $2 34. Qe2 $19) 34. gxf6+ Rxf6 $19) 31... fxg5 {[%emt 0:00:14]} 32. Bxh5 {[%emt 0:00:40]} Bxe4 {[%emt 0:00:06][%cal Oe6h6] Strongly threatening ...Qh6!} 33. R3d2 {[%emt 0:00:15] [#]} Rh8 $1 {[%emt 0:01:16] Black is more active.} 34. Qe2 {[%emt 0:02:17]} Qh6 {[%emt 0:01:09] Some like it hot} 35. g4 {[%emt 0:00:43]} ({Wrong is} 35. Qg4 $2 Bb7 $19 (35... Qxh5 36. Qxe4 Qh1+ 37. Kf2 $16) (35... Qxh5 36. Qxe4 Rb6 37. g3 $17)) 35... Rf8 {[%emt 0:01:13]} 36. Rf1 {[%emt 0:00:43] Dodges Bf3} Raa8 {[%emt 0:00:52]} 37. Rdd1 {[%emt 0:02:06]} Rxf1+ {[%emt 0:01:55]} 38. Rxf1 {[%emt 0:00:16]} Rf8 {[%emt 0:00:07] Prevents Rf7+} 39. Rf2 {[%emt 0:00:29]} Rxf2 {[%emt 0:04:13]} 40. Kxf2 {[%emt 0:00:59]} Qf6+ {[%emt 0:00:07]} 41. Ke1 {[%emt 0:00:04]} Bb1 {[%emt 0:00:05][%mdl 32768] Weighted Error Value: White=0.16 (very precise) /Black=0.13 (very precise) .  Mistake:       	White=3     	Black=3      Inaccurate:     	White=5     	Black=2      OK:         	White=10    	Black=14     Best:        	White=2     	Black=3      Strong:       	White=1     	Black=1     . Loss on time!?} (41... Bh1 $17 42. Qd2 e4) 0-1